Cogmind - Beta 9.5 *** ADVENTURER MODE // 2020.04.10 @ 01:03:47 Player: Photonicus Result: Self-destructed Performance ------------- Evolutions (1) 500 Regions Visited (2) 400 Robots Destroyed (11) 55 Value Destroyed (240) 240 Prototype IDs (2) 40 Alien Tech Used (0) 0 Bonus (0) 0 TOTAL SCORE: 1235 Bonus ------- None Cogmind --------- Core Integrity 319/400 Matter 300/300 Energy 100/100 System Corruption 0% Temperature Cool (6) Movement Walking (180) Ox2 Location -9/Materials Parts ------- > --- POWER (1) -------- (None) > --- PROPULSION (4) --- Aluminum Leg > --- UTILITY (2) ------ Small Storage Unit Large Storage Unit > --- WEAPON (2) ------- Datajack > --- INVENTORY (12) --- Ion Engine Light Ion Engine Medium Storage Unit Signal Interpreter Faulty Advanced Beam Cannon Light Assault Rifle Rocket Launcher Peak State ------------ > --- POWER ------------ Ion Engine > --- PROPULSION ------- Aluminum Leg Aluminum Leg Aluminum Leg Wheel > --- UTILITY ---------- Small Storage Unit Large Storage Unit > --- WEAPON ----------- Assault Rifle Datajack > --- INVENTORY -------- Ion Engine Light Ion Engine Medium Storage Unit Signal Interpreter Medium Laser Light Assault Rifle Rocket Launcher [Rating: 9] Favorites ----------- Power Ion Engine Engine Ion Engine Propulsion Aluminum Leg Leg Aluminum Leg Wheel Wheel Utility Small Storage Unit Storage Small Storage Unit Weapon Assault Rifle Energy Gun Medium Laser Ballistic Gun Assault Rifle Special Melee Weapon Datajack Build | -11 -10 -9 ------- Run | Scr Mat Mat Slots Evolved 2 | . . 2 Power . | . . . Propulsion 2 | . . 2 Utility . | . . . Weapon . | . . . Parts Attached 13 | 6 2 5 Power 1 | 1 . . Engine 1 | 1 . . Core . | . . . Reactor . | . . . Propulsion 5 | 2 . 3 Treads . | . . . Leg 4 | 2 . 2 Wheel 1 | . . 1 Hover . | . . . Flight . | . . . Utility 2 | 1 1 . Device . | . . . Storage 2 | 1 1 . Processor . | . . . Hackware . | . . . Protection . | . . . Artifact . | . . . Weapon 5 | 2 1 2 Energy Gun 2 | 1 . 1 Energy Cannon . | . . . Ballistic Gun 1 | 1 . . Ballistic Cannon . | . . . Launcher . | . . . Special Weapon . | . . . Impact Weapon . | . . . Slashing Weapon . | . . . Piercing Weapon . | . . . Special Melee Weapon 2 | . 1 1 Unidentified Prototypes . | . . . Parts Lost 6 | . . 6 Power 1 | . . 1 Propulsion 3 | . . 3 Utility . | . . . Weapon 2 | . . 2 Highest Loss Streak 6 | . . 6 Average Slot Usage (%) 94 | . 98 89 Engine 12 | . 14 10 Leg 30 | . 28 34 Wheel 1 | . . 3 Storage 24 | . 27 22 Energy Gun 8 | . 13 2 Ballistic Gun 11 | . 14 8 Special Melee Weapon 3 | . . 7 Naked Turns . | . . . Heaviest Build 29 | 13 29 29 Greatest Support 40 | 20 20 40 Greatest Overweight (x) 4 | 4 1 2 Average Overweight (x) . | 2 . . Largest Inventory Capacity 12 | 6 12 12 Average Capacity 10 | 5 11 12 Most Carried 8 | 4 6 8 Average Carried 5 | 3 4 6 Final Capacity 12 | 6 12 12 Final Carried 7 | 2 6 7 Class Distribution -------------------- 100% | Mutant Dominant Class ---------------- Mutant | -10/Materials Mutant | -9/Materials Resources | -11 -10 -9 ----------- Run | Scr Mat Mat Matter Collected 459 | 245 73 141 Remotely . | . . . Salvage Created 476 | 60 166 250 Parts 24 | 1 10 13 Haulers Intercepted 2 | . 1 1 Recyclers Shooed . | . . . Parts Field Recycled . | . . . Retrieved Matter . | . . . Parts Self-Destructed . | . . . Prevented . | . . . Kills | -11 -10 -9 ------- Run | Scr Mat Mat Combat Hostiles Destroyed 6 | . 2 4 Guns 6 | . 2 4 Classes Destroyed 5 | 1 3 1 Worker 2 | . 1 1 Hauler 2 | . 1 1 Recycler 1 | 1 . . Grunt 5 | . 2 3 Sentry 1 | . . 1 Best Kill Streak 3 | 1 2 3 Combat Bots Only 2 | . 1 2 Max Kills in Single Turn 1 | 1 1 1 Gunslinging . | . . . Exploded . | . . . Melee . | . . . Uniques/NPCs Destroyed . | . . . Combat | -11 -10 -9 -------- Run | Scr Mat Mat Damage Taken 709 | . 117 592 Core 89 | . 8 81 Absorbed by Shields . | . . . Core Remaining (%) 98 | 100 96 . Volleys Fired 48 | 4 12 32 Largest 2 | 2 2 2 Hottest 70 | 70 70 70 Shots Fired 77 | 8 24 45 Gun 77 | 8 24 45 Cannon . | . . . Launcher . | . . . Special . | . . . Kinetic 48 | 4 12 32 Thermal 29 | 4 12 13 Explosive . | . . . Electromagnetic . | . . . Robot Hit Streak 25 | 6 24 25 Robot Miss Streak 2 | 1 1 2 Penetration Max . | . . . Secondary Targets 1 | . . 1 Max Gunslinging Chain 1 | . . 1 Shots Hit Robots 69 | 6 21 42 Core Hits 22 | 2 8 12 Critical Hits . | . . . Critical Kills . | . . . Critical Parts Destroyed . | . . . Melee Attacks 1 | . . 1 Impact . | . . . Slashing . | . . . Piercing . | . . . Sneak Attacks . | . . . Combat Hostiles . | . . . Follow-up Attacks . | . . . Damage Inflicted 837 | 62 271 504 Guns 830 | 62 271 497 Cannons . | . . . Explosions . | . . . Melee . | . . . Ramming 7 | . . 7 Kinetic 488 | 24 119 345 Thermal 342 | 38 152 152 Explosive . | . . . Electromagnetic . | . . . Impact . | . . . Slashing . | . . . Piercing . | . . . Highest Corruption . | . . . Average Corruption . | . . . Corruption Purged . | . . . Overload Shots . | . . . Overflow Damage . | . . . Projectiles . | . . . Explosions . | . . . Melee . | . . . Knockbacks . | . . . Impact . | . . . Kinetic . | . . . Secondary . | . . . Self-Inflicted Damage . | . . . Shots . | . . . Rammed . | . . . Targets Rammed 1 | . . 1 Kicked 1 | . . 1 Crushed . | . . . Highest Temperature 117 | 36 117 111 Average Temperature 40 | 19 43 44 Received Heat Transfer 450 | . 87 363 Siege Activations . | . . . Robots Corrupted . | . . . Combat Hostiles . | . . . Parts Fried . | . . . Impact Corruptions . | . . . Robots Melted . | . . . Combat Hostiles . | . . . Parts Melted . | . . . Heat Transferred 999 | 111 444 444 Parts Sabotaged . | . . . Parts Stolen . | . . . Parts Stripped . | . . . Power Chain Reactions . | . . . Missiles Intercepted . | . . . Alert | -11 -10 -9 ------- Run | Scr Mat Mat Peak Influence 196 | 5 78 196 Average Influence 62 | 2 53 94 Maximum Alert Level . | . . . Low Security (%) 100 | 100 100 100 Level 1 . | . . . Level 2 . | . . . Level 3 . | . . . Level 4 . | . . . Level 5 . | . . . High Security . | . . . Max Security . | . . . Squads Dispatched 4 | . 1 3 Investigation 1 | . 1 . Extermination . | . . . Reinforcement 3 | . . 3 Assault . | . . . Garrison . | . . . Intercept . | . . . Construction Impeded . | . . . Haulers Reinforced . | . . . Stealth | -11 -10 -9 --------- Run | Scr Mat Mat Distress Signals 1 | . . 1 Communications Jammed . | . . . Distress Signals . | . . . Times Spotted 16 | . 2 14 Peak Tracking Total 6 | . 3 6 Tactical Retreats . | . . . Traps | -11 -10 -9 ------- Run | Scr Mat Mat Traps Triggered 1 | . 1 . Indirectly . | . . . Trap Hack Attempts 13 | . 13 . Triggered . | . . . Disarmed . | . . . Reprogrammed 2 | . 2 . Reused . | . . . Traps Extracted . | . . . Installed . | . . . Triggered . | . . . Machines | -11 -10 -9 ---------- Run | Scr Mat Mat Machines Disabled . | . . . Max in Single Turn . | . . . Machines Sabotaged . | . . . Garrisons Compromised . | . . . Overloaded Fab Kills . | . . . Fab Network Shutdowns . | . . . Hacking | -11 -10 -9 --------- Run | Scr Mat Mat Machines Accessed 4 | . 2 2 Terminals 4 | . 2 2 Fabricators . | . . . Repair Stations . | . . . Recycling Units . | . . . Scanalyzers . | . . . Garrison Access . | . . . Total Hacks 11 | . 5 6 Successful 10 | . 5 5 Failed 1 | . . 1 Catastrophic . | . . . Database Lockouts . | . . . Manual 2 | . 2 . Terminals 11 | . 5 6 Fabricators . | . . . Repair Stations . | . . . Recycling Units . | . . . Scanalyzers . | . . . Garrison Access . | . . . Terminal Hacks 10 | . 5 5 Prototype ID Bank 1 | . 1 . Branch Access Points 1 | . . 1 Alert Level 1 | . . 1 Locate Traps 1 | . 1 . Dispatch Records 1 | . 1 . Security Status 2 | . . 2 Surveillance Status 1 | . 1 . Assault Status 1 | . . 1 Zone Layout 1 | . 1 . Fabricator Hacks . | . . . Repair Station Hacks . | . . . Recycling Unit Hacks . | . . . Scanalyzer . | . . . Garrison Access Hacks . | . . . Unauthorized Hacks . | . . . Terminals . | . . . Fabricators . | . . . Repair Stations . | . . . Recycling Units . | . . . Scanalyzers . | . . . Garrison Access . | . . . Data Cores Recovered . | . . . Used . | . . . Hacking Detections 2 | . 1 1 Full Trace Events . | . . . Feedback Events . | . . . Feedback Blocked . | . . . Robot Schematics Acquired . | . . . Robots Built . | . . . Matter . | . . . Time . | . . . Total Robot Build Rating . | . . . Part Schematics Acquired . | . . . Parts Built . | . . . Matter . | . . . Time . | . . . Total Part Build Rating . | . . . Parts Repaired . | . . . Time . | . . . Parts Recycled . | . . . Recycled Matter . | . . . Retrieved Matter . | . . . Retrieved Components . | . . . Parts Scanalyzed . | . . . Part Schematics Acquired . | . . . Parts Damaged . | . . . Bothacking | -11 -10 -9 ------------ Run | Scr Mat Mat Used RIF Installer . | . . . Robots Hacked 1 | . . 1 Non-combat . | . . . Combat 1 | . . 1 Robot Hacks Applied 1 | . . 1 parse_system 1 | . . 1 Relay Couplers Released . | . . . Robots Rewired . | . . . Allies Hacked . | . . . Hacks Repelled . | . . . Allies | -11 -10 -9 -------- Run | Scr Mat Mat Total Allies . | . . . Largest Group . | . . . Highest-Rated Group . | . . . Highest-Rated Ally . | . . . Total Orders . | . . . Ally Attacks . | . . . Total Damage . | . . . Kills . | . . . Allies Corrupted . | . . . Allies Melted . | . . . Intel | -11 -10 -9 ------- Run | Scr Mat Mat Robot Analysis Total . | . . . Derelict Logs Recovered . | . . . Drone Launches . | . . . Drone Recoveries . | . . . Exploration | -11 -10 -9 ------------- Run | Scr Mat Mat Turns Passed 641 | 94 289 258 Spaces Moved 323 | 36 159 128 Core 35 | 35 . . Treads . | . . . Legs 288 | 1 159 128 Wheels . | . . . Hover . | . . . Flight . | . . . Fastest Speed 50 | 50 120 120 Average Speed 143 | 190 146 126 Slowest Speed 250 | 250 150 180 Overloaded Moves . | . . . Propulsion Burnouts . | . . . Robots Hopped . | . . . Cave-ins Triggered . | . . . Exploration Rate (%) 18 | 5 33 18 Regions Visited 2 Branch Regions . Pre-discovered Areas . | . . . Known Exits Taken . | . . . Unknown Exits Taken 2 | 1 1 . Scrap Searched . | . . . Spaces Dug . | . . . Terrain Destroyed . | . . . Melee . | . . . Projectile . | . . . AOE . | . . . Actions | -11 -10 -9 --------- Run | Scr Mat Mat Total 420 | 53 190 177 Wait 4 | . . 4 Move 321 | 35 158 128 Hop . | . . . Pick Up 18 | 8 5 5 Fast Attach . | . . . Attach 10 | 6 1 3 Detach . | . . . Swap 3 | . 1 2 Drop 1 | . . 1 Fire 48 | 4 12 32 Melee 1 | . . 1 Ram . | . . . Kick 1 | . . 1 Crush . | . . . Escape Stasis . | . . . Rewire . | . . . Trap 13 | . 13 . Miscellaneous . | . . . Route ------- -11/Scrapyard -10/Materials -9/Materials (discovered 2 exits: Min / Sto) History --------- Turn | Location | Event 19 | -11/Scrapyard | Discovered new exit (range 15) 95 | -11/Scrapyard | Entered Materials 308 | -10/Materials | Build established: Mutant 359 | -10/Materials | Discovered new exit (range 7) 384 | -10/Materials | Entered another Materials area 384 | -9/Materials | Evolved 2 slots: Propulsion x2 490 | -9/Materials | Identified exit to Mines 490 | -9/Materials | Identified exit to Storage 642 | -9/Materials | Self-destructed Last Messages --------------- Y-45 Defender destroyed. Switching to secondary target: G-34 Mercenary. Acquired 18 matter. Acquired 3 matter. G-34 Mercenary destroyed. Acquired 3 matter. Med. Laser destroyed. Assault Rifle destroyed. Acquired 7 matter. Aluminum Leg destroyed. Acquired Faulty Adv. Beam Cannon. Aluminum Leg destroyed. Kicked G-34 Mercenary out of the way. Jacked G-34 Mercenary... >>parse_system Reading system data... Aluminum Leg destroyed. K-01 Serf collects debris. Ion Engine destroyed. K-01 Serf collects debris. Map ----- +----------------------------------------------------+ | ?????????????>?????????????????????????? | | ???????????????????????????????????????? | | ???????????????????????????????????????? | | ???????????????????????????????????????? | | ???????????????????????????????????????? | | ???????????????????????????????????????? | | ???????????????????????????????????????? | | ???????????? ????????????????????????? | | ???????????? ???????????????????????? | | ???????????? #???????????????????????? | | ???????????# #???????????????????????? | | ???????????+ +???????????????????????? | | ???????????# #???????????????????????? | | ???????????# #???????????????????????? | | ???????????# #???????????????????????? | | ???????????# #???????????????????????? | | ???????????# #???????????????????????? | | ???######### +???????????????????????? | | ???# """ # #???????????????????????? | | ???# """ # #???????????????????????? | | ???# """ # r#???????????????????????? | | ???# Yg g#???????????????????????? | | ???# #g #???????????????????????? | | ???####/#### ##??????????????????????? | | ?????## ### ##### #????????????? | | ?????# g @ t ????????? | | ?????# !!=k T ??????????? | | ?????# g===* o??????????? | | ?#######+##%=![ ##### ### ?????????? | | ?# #=#####?????#+###????????????? | | ?# "Y" # #??????????????????????????? | | ?# """ #%#??????????????????????????? | | ?# #=#??????????????????????????? | | ?########/#%#??????????????????????????? | | ????????# #??????????????????????????? | | ????????# #??????????????????????????? | | ????????# #??????????????????????????? | | ????????# #??????????????????????????? | | ????????# #???? #????????????????????? | | ????????# #?? #????????????????????? | | ????????# # """#????????????????????? | | ????????+ / """#????????????????????? | | ????????# # """#????????????????????? | | ????????# #? """#????????????????????? | | ????????# #? """#????????????????????? | | ######### #! #????????????????????? | | # ## # ][[#?? ????????????????? | | #" """ ## + ][ #? ????????????????? | | #T """ ## # [[ # #???????????????? | | #" """ ## ####### #???????????????? | +----------------------------------------------------+ Best States ------------- Heat Dissipation 28 Energy Generation 10 Energy Capacity 250 Matter Stores 300 Matter Capacity 300 Sight Range 16 Terrain Scan Density 10 Resistance: KI 20 Resistance: TH 20 Resistance: EX 20 Resistance: EM 20 Resistance: I 20 Resistance: S 20 Resistance: P 20 Evasion (%) 40 Offensive Hacking 10 Item Schematics ----------------- None Robot Schematics ------------------ None Fabricated ------------ Nothing Alien Tech Used ----------------- None Achievements -------------- Hehehe Challenges ------------ None Game ------ Seed SeismicMissileAnalyzer Manual? 0 Play Time 00:11:07 Cumulative 23.5 hours Start 2020.04.10 @ 00:51:40 End 2020.04.10 @ 01:03:47 Sessions 1 Manual Loads 0 Difficulty Adventurer Special Mode None Game No. 16 Rogue 0 Adventurer 16 Explorer 0 Win Type - Total 0 Types 0/0/0/0/0/0/0 Lore% 8 Gallery% 30 Achievement% 21 Wizard Run 0 Options --------- ASCII 0 Keyboard 0 Movement Mouse Keybinds 0 Fullscreen 1 Font 18/SmallcapsGlow Map View 76x50 Tactical HUD 0 Map Filters NONE Filters NONE Steam 1 RUN: b6e21d0c-6b10-416d-9a43-7ce3204efba9